Cogmind - Beta 17 @@@ ROGUE MODE // 2026.07.31 @ 22:24:15 Player: 4R-ZE3 Result: Destroyed by MW-JN3(R) with Subdweller Laser Performance ------------- Evolutions (0) 0 Regions Visited (2) 400 Robots Destroyed (22) 110 Value Destroyed (490) 490 Prototype IDs (0) 0 Alien Tech Used (0) 0 Bonus (0) 0 TOTAL SCORE: 1000 Bonus ------- None Cogmind --------- Core Integrity 0/250 Matter 260/300 Energy 100/100 System Corruption 0% Temperature Cool (6) Movement Treading (240) Ox1 Location -10/Subcaves Parts ------- > --- POWER (1) -------- (None) > --- PROPULSION (2) --- Light Treads > --- UTILITY (2) ------ Large Storage Unit Light Armor Plating > --- WEAPON (2) ------- Light Assault Rifle Battle Cannon > --- INVENTORY (15) --- Armored Wheel Armored Wheel Subdweller Monowheel Huge Storage Unit Targeting Computer Makeshift Light Armor Plating Hacking Suite Subdweller Laser Subdweller Laser Subdweller Beam Cannon Subdweller Beam Cannon Light Assault Rifle Subdweller Machine Gun Light Cannon Makeshift Spear Peak State ------------ > --- POWER ------------ Ion Engine > --- PROPULSION ------- Light Treads Spiked Treads > --- UTILITY ---------- Large Storage Unit Light Armor Plating > --- WEAPON ----------- Light Assault Rifle Makeshift Spear > --- INVENTORY -------- Armored Wheel Armored Wheel Subdweller Monowheel Huge Storage Unit Targeting Computer Makeshift Light Armor Plating Hacking Suite Subdweller Laser Subdweller Laser Subdweller Beam Cannon Subdweller Beam Cannon Light Assault Rifle Subdweller Machine Gun Light Cannon Battle Cannon [Rating: 13] Favorites ----------- Power Ion Engine Engine Ion Engine Propulsion Light Treads Treads Light Treads Utility Large Storage Unit Storage Large Storage Unit Processor Targeting Computer Protection Light Armor Plating Weapon Small Laser Energy Gun Small Laser Ballistic Gun Light Assault Rifle Ballistic Cannon Battle Cannon Launcher Grenade Launcher Piercing Weapon Makeshift Spear Build | -11 -10 -10 ------- Run | Yrd Mat Sub Slots Evolved . | . . . Power . | . . . Propulsion . | . . . Utility . | . . . Weapon . | . . . Parts Attached 21 | 6 7 8 Power 3 | 1 . 2 Engine 3 | 1 . 2 Core . | . . . Reactor . | . . . Propulsion 5 | 2 . 3 Treads 5 | 2 . 3 Leg . | . . . Wheel . | . . . Hover . | . . . Flight . | . . . Utility 5 | 1 3 1 Device . | . . . Storage 2 | 1 1 . Processor 1 | . 1 . Hackware . | . . . Protection 2 | . 1 1 Artifact . | . . . Weapon 8 | 2 4 2 Energy Gun 3 | 2 1 . Energy Cannon . | . . . Ballistic Gun 2 | . 2 . Ballistic Cannon 1 | . . 1 Launcher 1 | . 1 . Special Weapon . | . . . Impact Weapon . | . . . Slashing Weapon . | . . . Piercing Weapon 1 | . . 1 Special Melee Weapon . | . . . Unidentified Prototypes . | . . . Parts Lost 5 | . . 5 Power 2 | . . 2 Propulsion 3 | . . 3 Utility . | . . . Weapon . | . . . Highest Loss Streak 3 | . . 3 To Critical Strikes . | . . . Average Backups 12 | 1 11 14 Power . | . . . Propulsion 5 | . 6 4 Utility 3 | . 2 3 Weapon 3 | . 2 6 Tool/Special . | . . . Unused Backups 22 | . 3 19 Power 1 | . 1 . Propulsion 7 | . . 7 Utility 5 | . 1 4 Weapon 9 | . 1 8 Tool/Special . | . . . Average Slot Usage (%) 99 | . 99 99 Engine 13 | . 14 13 Treads 28 | . 28 28 Storage 14 | . 14 14 Processor 10 | . 13 5 Protection 3 | . . 8 Energy Gun 16 | . 25 . Ballistic Gun 8 | . 2 20 Ballistic Cannon 2 | . . 5 Peak Build Rating 13 | 6 9 13 Average Rating 9 | 4 8 11 On Entrance 5 | . 6 9 Avg Prop Armor Cover (%) . | . . . Naked Turns . | . . . Heaviest Build 32 | 12 29 32 Greatest Support 40 | 40 40 40 Greatest Overweight (x) . | . . . Average Overweight (x) . | . . . Largest Inventory Capacity 15 | 8 15 15 Average Capacity 13 | 7 13 15 Most Carried 15 | 3 15 15 Average Carried 12 | 1 12 14 Final Capacity 15 | 8 15 15 Final Carried 15 | 3 15 15 Class Distribution -------------------- 100% | Mutant Dominant Class ---------------- Mutant | -10/Materials Mutant | -10/Subcaves Resources | -11 -10 -10 ----------- Run | Yrd Mat Sub Matter Collected 633 | 135 225 273 Remotely . | . . . Salvage Created 567 | . 352 215 Parts 42 | . 27 15 Haulers Intercepted 2 | . 2 . Recyclers Shooed 1 | . 1 . Parts Field Recycled . | . . . Retrieved Matter . | . . . Parts Self-Destructed 3 | . . 3 Prevented . | . . . Parts Restored . | . . . Kills | -11 -10 -10 ------- Run | Yrd Mat Sub Combat Hostiles Destroyed 18 | . 12 6 Guns 10 | . 7 3 Cannons 3 | . . 3 AOE 5 | . 5 . Classes Destroyed 6 | . 5 1 Worker 1 | . 1 . Hauler 2 | . 2 . Operator 1 | . 1 . Swarmer 8 | . 8 . Grunt 4 | . 4 . Subdweller 6 | . . 6 Best Kill Streak 3 | . 3 2 Combat Bots Only 3 | . 3 2 Max Kills in Single Turn 3 | . 3 1 Gunslinging . | . . . Exploded 2 | . 2 . Melee . | . . . Uniques/NPCs Destroyed . | . . . Combat | -11 -10 -10 -------- Run | Yrd Mat Sub Hostile Shots Fired 99 | . 51 48 Missed 26 | . 16 10 Hits 73 | . 35 38 Projectile 73 | . 35 38 Critical Strikes 2 | . . 2 Damage Taken 1245 | . 375 870 Core 251 | . 98 153 Absorbed by Shields . | . . . Core Remaining (%) 100 | 100 . . Volleys Fired 70 | . 39 31 Largest 2 | . 2 2 Hottest 80 | . 80 53 Shots Fired 139 | . 77 62 Gun 117 | . 71 46 Cannon 16 | . . 16 Launcher 6 | . 6 . Special . | . . . Kinetic 64 | . 2 62 Thermal 69 | . 69 . Explosive 6 | . 6 . Electromagnetic . | . . . Robot Hit Streak 13 | . 13 12 Robot Miss Streak 5 | . 5 2 Penetration Max . | . . . Secondary Targets 1 | . . 1 Max Gunslinging Chain 1 | . . 1 Shots Hit Robots 98 | . 47 51 Core Hits 42 | . 24 18 Critical Kills . | . . . Critical Parts Destroyed . | . . . Critical Strikes . | . . . Melee Attacks 2 | . . 2 Impact . | . . . Slashing . | . . . Piercing 2 | . . 2 Sneak Attacks . | . . . Combat Hostiles . | . . . Follow-up Attacks . | . . . Damage Inflicted 1448 | . 875 573 Guns 806 | . 519 287 Cannons 286 | . . 286 Explosions 356 | . 356 . Melee . | . . . Ramming . | . . . Kinetic 573 | . . 573 Thermal 519 | . 519 . Explosive 356 | . 356 . Electromagnetic . | . . . Impact . | . . . Slashing . | . . . Piercing . | . . . Highest Corruption . | . . . Average Corruption . | . . . Corruption Purged . | . . . Corruption Blocked . | . . . Overload Shots . | . . . Overflow Damage 46 | . 46 . Projectiles . | . . . Explosions 46 | . 46 . Melee . | . . . Knockbacks 2 | . . 2 Impact . | . . . Kinetic 2 | . . 2 Secondary . | . . . Self-Inflicted Damage 9 | . 9 . Shots 1 | . 1 . Rammed . | . . . Targets Rammed . | . . . Kicked . | . . . Crushed . | . . . Highest Temperature 269 | . 162 269 Average Temperature 50 | . 42 141 Received Heat Transfer 591 | . 96 495 Siege Activations . | . . . Martial Activations . | . . . Shielding Activations . | . . . Robots Disrupted . | . . . Combat Hostiles . | . . . Robots Corrupted . | . . . Combat Hostiles . | . . . Parts Fried . | . . . Impact Corruptions . | . . . Robots Melted . | . . . Combat Hostiles . | . . . Parts Melted 4 | . 3 1 Heat Transferred 1150 | . 1150 . Parts Sabotaged . | . . . Parts Stolen . | . . . Parts Stripped . | . . . Power Chain Reactions . | . . . Alert | -11 -10 -10 ------- Run | Yrd Mat Sub Maximum Alert Level . | . . . Low Security (%) 100 | 100 100 . Level 1 . | . . . Level 2 . | . . . Level 3 . | . . . Level 4 . | . . . Level 5 . | . . . High Security . | . . . Max Security . | . . . Peak Influence 99 | . 99 . Initial . | . . . Average 28 | . 29 . Influence Increases 398 | . 398 . Destroy 0b10 Robot/C 240 | . 240 . Destroy 0b10 Robot/NC 20 | . 20 . Destroy Leader 44 | . 44 . Successful Hack 6 | . 6 . Destroy Structure 28 | . 28 . Lose Combat Pursuer 60 | . 60 . Influence Decreases 398 | . 379 19 Entered New Map 10 | . . 10 Time Decay 388 | . 379 9 Squads Dispatched 3 | . 3 . Investigation 1 | . 1 . Extermination . | . . . Reinforcement 2 | . 2 . Assault . | . . . Garrison . | . . . Intercept . | . . . Searches Triggered . | . . . Construction Impeded . | . . . Haulers Reinforced . | . . . Active Scanning Responses . | . . . Cargo Convoy Interrupts . | . . . Stealth | -11 -10 -10 --------- Run | Yrd Mat Sub Distress Signals . | . . . Communications Jammed . | . . . Distress Signals . | . . . Times Spotted 37 | . 30 7 Peak Tracking Total 5 | . 5 2 Tactical Retreats 3 | . 3 . Traps | -11 -10 -10 ------- Run | Yrd Mat Sub Traps Triggered 2 | . 2 . Indirectly . | . . . Trap Hack Attempts . | . . . Triggered . | . . . Disarmed . | . . . Reprogrammed . | . . . Reused . | . . . Traps Extracted . | . . . Installed . | . . . Triggered . | . . . Machines | -11 -10 -10 ---------- Run | Yrd Mat Sub Machines Disabled . | . . . Max in Single Turn . | . . . Machines Repaired . | . . . Machines Dismantled . | . . . Machines Sabotaged . | . . . Overloaded Fab Kills . | . . . Hacking | -11 -10 -10 --------- Run | Yrd Mat Sub Machines Accessed 4 | . 4 . Terminals 3 | . 3 . Fabricators . | . . . Repair Stations . | . . . Recycling Units 1 | . 1 . Scanalyzers . | . . . Garrison Access . | . . . Total Hacks 9 | . 9 . Successful 4 | . 4 . Failed 5 | . 5 . Catastrophic 1 | . 1 . Database Lockouts . | . . . Manual 7 | . 7 . Terminals 7 | . 7 . Fabricators . | . . . Repair Stations . | . . . Recycling Units 2 | . 2 . Scanalyzers . | . . . Garrison Access . | . . . Terminal Hacks 3 | . 3 . Robot Analysis 2 | . 2 . Recall Investigation 1 | . 1 . Fabricator Hacks . | . . . Repair Station Hacks . | . . . Recycling Unit Hacks 1 | . 1 . Retrieve Components 1 | . 1 . Scanalyzer . | . . . Garrison Access Hacks . | . . . Unauthorized Hacks . | . . . Terminals . | . . . Fabricators . | . . . Repair Stations . | . . . Recycling Units . | . . . Scanalyzers . | . . . Garrison Access . | . . . Data Cores Recovered . | . . . Used . | . . . Hacking Detections 3 | . 3 . Full Trace Events . | . . . Feedback Events . | . . . Feedback Blocked . | . . . Robot Schematics Acquired . | . . . Robots Built . | . . . Authchips . | . . . Time . | . . . Total Robot Build Rating . | . . . Part Schematics Acquired . | . . . Parts Built . | . . . Authchips . | . . . Time . | . . . Total Part Build Rating . | . . . Part Studies Acquired . | . . . Parts Repaired . | . . . Time . | . . . Parts Recycled . | . . . Recycled Matter . | . . . Retrieved Matter . | . . . Retrieved Components . | . . . Parts Scanalyzed . | . . . Part Schematics Acquired . | . . . Parts Damaged . | . . . Bothacking | -11 -10 -10 ------------ Run | Yrd Mat Sub Used RIF Installer . | . . . Robots Hacked . | . . . Non-combat . | . . . Combat . | . . . Robot Hacks Applied . | . . . Relay Couplers Released . | . . . Fabnet Peak Effective % . | . . . Robots Rewired . | . . . Allies Hacked . | . . . Hacks Repelled . | . . . Allies | -11 -10 -10 -------- Run | Yrd Mat Sub Total Allies . | . . . Largest Group . | . . . Highest-Rated Group . | . . . Highest-Rated Ally . | . . . Total Orders . | . . . Ally Attacks . | . . . Total Damage . | . . . Kills . | . . . Allies Corrupted . | . . . Allies Melted . | . . . Intel | -11 -10 -10 ------- Run | Yrd Mat Sub Active Infowar (turns) . | . . . Robot Analysis Total 2 | . 2 . Derelict Logs Recovered . | . . . Drone Launches . | . . . Drone Recoveries . | . . . Exploration | -11 -10 -10 ------------- Run | Yrd Mat Sub Turns Passed 2368 | 82 1443 843 Spaces Moved 1247 | 47 757 443 Core 4 | 4 . . Treads 1243 | 43 757 443 Legs . | . . . Wheels . | . . . Hover . | . . . Flight . | . . . Fastest Speed 50 | 50 160 160 Average Speed 159 | 150 160 160 Slowest Speed 160 | 160 160 160 Overloaded Moves . | . . . Propulsion Burnouts . | . . . Robots Hopped . | . . . Potential Cave-ins . | . . . Cave-ins Triggered . | . . . Exploration Rate (%) 42 | 4 95 28 Regions Visited 2 Branch Regions 1 Pre-discovered Areas . | . . . Known Exits Taken . | . . . Unknown Exits Taken 2 | 1 1 . Scrap Searched 7 | . . 7 Spaces Dug . | . . . Terrain Destroyed 26 | . 26 . Melee . | . . . Projectile . | . . . AOE 26 | . 26 . Terrain Rammed . | . . . Walls Destroyed . | . . . Machines Disabled . | . . . Actions | -11 -10 -10 --------- Run | Yrd Mat Sub Total 1491 | 55 912 524 Wait 96 | . 77 19 Move 1245 | 46 756 443 Hop . | . . . Pick Up 28 | 3 17 8 Fast Attach 12 | 6 4 2 Attach 5 | . 1 4 Detach . | . . . Swap 14 | . 8 6 Drop 19 | . 10 9 Fire 70 | . 39 31 Melee 2 | . . 2 Ram . | . . . Kick . | . . . Crush . | . . . Escape Stasis . | . . . Rewire . | . . . Trap . | . . . Miscellaneous . | . . . Route ------- -11/Scrapyard -10/Materials (discovered 5 exits: [*Mat x3] / [*Min] / [*Sub]) -10/Subcaves (discovered 1 exit: [*Mat]) History --------- Turn | Location | Event 10 | -11/Scrapyard | Discovered new exit (range 15) 83 | -11/Scrapyard | Entered Materials 254 | -10/Materials | Discovered new exit (range 6) 307 | -10/Materials | Build established: Mutant 329 | -10/Materials | Discovered new exit (range 14) 662 | -10/Materials | Discovered new exit (range 16) 1483 | -10/Materials | Discovered new exit (range 16) 1521 | -10/Materials | Discovered new exit (range 3) 1526 | -10/Materials | Entered Subcaves 1820 | -10/Subcaves | Core integrity fell below 50% 1876 | -10/Subcaves | Lost 3 parts (1p2n) 2071 | -10/Subcaves | Discovered new exit (range 6) 2147 | -10/Subcaves | Core integrity fell below 20% 2369 | -10/Subcaves | Destroyed by MW-JN3(R) with Subdweller Laser Last Messages --------------- 02069_ Subatomizers dissect the Sub. Optics. 02071_ EXIT=FOUND 02080_ Acquired 10 matter. 02084_ Subatomizers dissect the Sub. Optics, destroying it. 02140_ 7C-0GT(R) knocked back. 02151_ 7C-0GT(R) destroyed. 02155_ Acquired 27 matter. 02157_ Acquired 1 matter. 02160_ Acquired 5 matter. 02192_ Acquired 8 matter. 02194_ Acquired 5 matter. 02204_ Subatomizers dissect the Sub. Optics. 02205_ 62-J0H(O) collects matter. 02280_ D1-33L(R) knocked back. 02283_ D1-33L(R) destroyed. 02287_ Acquired 12 matter. 02348_ MW-JN3(R): "MADSUB!" 02355_ Ion Engine destroyed. 02361_ Spk. Treads destroyed. Map ----- +----------------------------------------------------+ | ?????????????????????????????????????????????????? | | ?????????????????????????????????????????????????? | | ?????????????????????????????????????????????????? | | ?????????????????????????????????????????????????? | | ?????????????????????????????????????????????????? | | ?????????????????????????????????????????????????? | | ?????????????????????????????????????????????????? | | ?????????????????????????????????????????????????? | | ?????????????????????????????????????????????????? | | ?????????????????????????????????????????????????? | | ?????????????????????????????????????????????????? | | ?????????????????????????????????????????????????? | | ?????????????????????????????????????????????????? | | ?????????????????????????????????????????????????? | | ?????????????????????????????????????????????????? | | ?????????????????????????????????????????????????? | | ?????????????????????????????????????????????????? | | ?????????????????????????????????????????????????? | | ?????????????????????????????????????????????????? | | ?????????????????????????????????????????????????? | | ???????????????????????????#####?????????????????? | | ???????????????????????????# ##????????##??????? | | ??????????????????????????## ####### ##?????? | | ?????????????????????????## " #?????? | | ????????????????????????##" """ #??###### | | ????????????????????????#@ " "" ## ###### | | ???????????????????????## ## "##### "## | | ??????????????????????## ###" ###?# ## | | ??????????????????# "#"R #?### "#?? ### | | ?????????????????? """"%% #####" #### #?# | | ?????????????????? """" " # """ # ### | | ??????????????????####"#" ""##""""""" # ## | | ?????????????????????# #""" """"""""" | | ????????????????????? ?""" """"""""" ## | | ??????????????????????"" """" "" """" ## | | ?????????????????????## " """" # | | ??????????????????????### ## """" #### | | ????????????????????????# ?## """" #### | | ???????????????????????? ## ???# " " # | | ???????????????????????? ### ###### " " | | ???????????????????????? #????# " " !%* | | ???????????????????????? ????# " &%! | | ??????????????????????????? ????####### ##& | | ??????????????????????????????????????## ### ## | | ???????????????????????????????????????#####?###?# | | ?????????????????????????????????????????????????? | | ?????????????????????????????????????????????????? | | ?????????????????????????????????????????????????? | | ?????????????????????????????????????????????????? | | ?????????????????????????????????????????????????? | +----------------------------------------------------+ Best States ------------- Heat Dissipation 25 Energy Generation 15 Energy Capacity 250 Matter Stores 300 Matter Capacity 300 Sight Range 16 Terrain Scan Density 10 Armor Coverage 150 Evasion (%) 40 Targeting Accuracy 5 Recoil Reduction 2 Item Schematics ----------------- None Robot Schematics ------------------ None Fabricated ------------ Nothing Repaired ---------- Nothing Studied --------- None Alien Tech Used ----------------- None Achievements -------------- None Challenges ------------ None Game ------ Seed SensorTerrainThruster Manual? 0 Play Time 00:16:57 Cumulative 135.8 hours Start 2026.07.31 @ 22:08:48 End 2026.07.31 @ 22:24:15 Sessions 1 Manual Loads 0 Difficulty Rogue Special Mode None Game No. 150 Rogue 96 Adventurer 54 Explorer 0 Win Type - Total 5 Types 3/0/0/1/0/0/0/0/0/1 Lore% 57 Gallery% 54 Achievement% 49 Wizard Run 0 Options --------- Layout 1 ASCII 0 Keyboard 0 Movement Mouse Keybinds 1 Fullscreen 2 Font 32/Tamsyn Map View 50x35 Zoom Use 0% Tactical HUD 1 Map Filters NONE Filters NONE Steam 1 RUN: f22029c8-a5a8-469d-9ab2-dbf1321339a4